[Event "2nd Goa GM Open 2019"]
[Site "Goa"]
[Date "2019.06.25"]
[Round "10.9"]
[White "Neelash Saha"]
[Black "Gukesh D"]
[Result "0-1"]
[ECO "A50"]
[WhiteElo "2315"]
[BlackElo "2543"]
[Annotator "ChessBase"]
[PlyCount "74"]
[EventDate "2019.06.17"]
[EventType "swiss"]
[EventCountry "IND"]
[SourceTitle "playchess.com"]
[Source "ChessBase"]
[SourceQuality "1"]
[TimeControl "5400+30"]

1. d4 {[%emt 0:00:00]} Nf6 {[%emt 0:00:00]} 2. c4 {[%emt 0:00:00]} b6 {[%emt 0:00:03]} 3. f3 {[%emt 0:04:35]} Nc6 {[%emt 0:00:05]} 4. Nc3 {[%emt 0:10:52]} e5 {[%emt 0:03:59]} 5. d5 {[%emt 0:00:54]} Ne7 {[%emt 0:04:38]} 6. e4 {[%emt 0:01:51]} Ng6 {[%emt 0:00:13]} 7. Be3 {[%emt 0:00:39]} Bc5 {[%emt 0:04:04]} 8. Qd2 {[%emt 0:04:44]} O-O {[%emt 0:08:13]} 9. g3 {[%emt 0:02:27]} Ne8 {[%emt 0:05:17]} 10. Bd3 {[%emt 0:05:16]} d6 {[%emt 0:05:34]} 11. Nge2 {[%emt 0:06:28]} Bh3 {[%emt 0:02:24]} 12. Ng1 {[%emt 0:06:43]} Bxe3 {[%emt 0:00:08]} 13. Qxe3 {[%emt 0:00:18]} Bg2 {[%emt 0:00:05]} 14. Kf2 {[%emt 0:03:13]} Bxh1 {[%emt 0:01:12]} 15. Nge2 {[%emt 0:00:00]} Bg2 16. Ng1 {[%emt 0:00:34]} Bh1 {[%emt 0:01:00]} 17. Nge2 Bxf3 {[%emt 0:05:31]} 18. Kxf3 {[%emt 0:00:37]} Nf6 {[%emt 0:03:50]} 19. Rf1 {[%emt 0:00:17]} Nd7 {[%emt 0:02:12]} 20. Kg2 {[%emt 0:00:22]} Nc5 {[%emt 0:00:31]} 21. Bc2 {[%emt 0:00:06]} a5 {[%emt 0:00:37]} 22. h4 {[%emt 0:00:46]} Qd7 {[%emt 0:07:02]} 23. h5 {[%emt 0:02:11]} Ne7 {[%emt 0:00:06]} 24. h6 {[%emt 0:00:46]} g6 {[%emt 0:00:36]} 25. Nb5 {[%emt 0:15:19]} f5 {[%emt 0:02:04]} 26. exf5 {[%emt 0:01:26]} Nxf5 {[%emt 0:00:11]} 27. Qg5 {[%emt 0:00:03]} Qd8 {[%emt 0:07:22]} 28. Rxf5 {[%emt 0:00:21]} Rxf5 {[%emt 0:00:10]} 29. Qxd8+ {[%emt 0:00:03]} Rxd8 {[%emt 0:00:04]} 30. Bxf5 {[%emt 0:00:04]} gxf5 {[%emt 0:00:04]} 31. Nxc7 {[%emt 0:00:07]} Kf7 {[%emt 0:00:47]} 32. Nc3 {[%emt 0:00:44]} Ke7 {[%emt 0:00:39]} 33. Nd1 {[%emt 0:01:05]} Kd7 {[%emt 0:00:42]} 34. Nb5 {[%emt 0:00:04]} Rg8 {[%emt 0:01:00]} 35. Ne3 {[%emt 0:00:11]} f4 {[%emt 0:04:21]} 36. Nf5 {[%emt 0:00:04]} e4 {[%emt 0:00:42]} 37. Ng7 {[%emt 0:01:43]} f3+ {[%emt 0:00:12]} 0-1

[Event "2nd Goa GM Open 2019"]
[Site "Goa"]
[Date "2019.06.25"]
[Round "10.10"]
[White "Shyaamnikhil P"]
[Black "Burmakin, Vladimir"]
[Result "0-1"]
[ECO "B19"]
[WhiteElo "2434"]
[BlackElo "2526"]
[Annotator "ChessBase"]
[PlyCount "84"]
[EventDate "2019.06.17"]
[EventType "swiss"]
[EventCountry "IND"]
[SourceTitle "playchess.com"]
[Source "ChessBase"]
[SourceQuality "1"]
[TimeControl "5400+30"]

1. e4 {[%emt 0:00:00]} c6 {[%emt 0:00:00]} 2. d4 {[%emt 0:00:00]} d5 {[%emt 0:00:03]} 3. Nd2 {[%emt 0:00:00]} dxe4 {[%emt 0:01:25]} 4. Nxe4 {[%emt 0:00:07]} Bf5 {[%emt 0:00:22]} 5. Ng3 {[%emt 0:00:22]} Bg6 {[%emt 0:00:06]} 6. h4 {[%emt 0:00:09]} h6 {[%emt 0:00:09]} 7. Nf3 {[%emt 0:00:05]} Nd7 {[%emt 0:00:07]} 8. h5 {[%emt 0:00:05]} Bh7 {[%emt 0:00:06]} 9. Bd3 {[%emt 0:00:04]} Bxd3 {[%emt 0:00:08]} 10. Qxd3 {[%emt 0:00:03]} e6 {[%emt 0:00:08]} 11. Bd2 {[%emt 0:00:08]} Qc7 {[%emt 0:00:20]} 12. O-O-O {[%emt 0:00:12]} O-O-O {[%emt 0:00:10]} 13. c4 {[%emt 0:03:40]} Ngf6 {[%emt 0:03:10]} 14. Ne4 {[%emt 0:01:04]} c5 {[%emt 0:02:16]} 15. Nxf6 {[%emt 0:01:41]} Nxf6 {[%emt 0:01:50]} 16. Bc3 {[%emt 0:01:20]} cxd4 {[%emt 0:05:45]} 17. Bxd4 {[%emt 0:06:09]} Bc5 {[%emt 0:03:18]} 18. Qc3 {[%emt 0:07:19]} Bxd4 {[%emt 0:02:15]} 19. Rxd4 {[%emt 0:00:07]} Rxd4 {[%emt 0:01:37]} 20. Nxd4 {[%emt 0:03:04]} Rd8 {[%emt 0:04:18]} 21. Nc2 {[%emt 0:05:19]} Ne4 {[%emt 0:11:40]} 22. Qxg7 {[%emt 0:01:07]} Qf4+ {[%emt 0:01:54]} 23. Kb1 {[%emt 0:00:07]} Nxf2 {[%emt 0:02:57]} 24. Re1 {[%emt 0:01:43]} Ne4 {[%emt 0:11:10]} 25. Na3 {[%emt 0:02:10]} a6 {[%emt 0:04:28]} 26. Ka1 {[%emt 0:01:14]} Qg3 {[%emt 0:03:22]} 27. Qxg3 {[%emt 0:01:23]} Nxg3 {[%emt 0:00:02]} 28. c5 {[%emt 0:00:17]} Rd5 {[%emt 0:04:15]} 29. Nc4 {[%emt 0:00:37]} Rxc5 {[%emt 0:01:02]} 30. Nd6+ {[%emt 0:00:12]} Kd7 {[%emt 0:00:22]} 31. Nxf7 {[%emt 0:00:06]} Rxh5 {[%emt 0:00:25]} 32. Rd1+ {[%emt 0:00:07]} Ke7 {[%emt 0:01:02]} 33. Nd6 {[%emt 0:00:05]} b5 {[%emt 0:05:15]} 34. a4 {[%emt 0:00:28]} bxa4 {[%emt 0:08:09]} 35. Ka2 {[%emt 0:00:18]} Rd5 {[%emt 0:03:53]} 36. Nc8+ {[%emt 0:00:10]} Kf6 {[%emt 0:00:30]} 37. Rc1 {[%emt 0:00:53]} Rd2 {[%emt 0:01:39]} 38. Rc4 {[%emt 0:00:05]} Rxg2 {[%emt 0:00:31]} 39. Rxa4 {[%emt 0:00:04]} h5 {[%emt 0:00:08]} 40. Nd6 {[%emt 0:00:09]} Rd2 {[%emt 0:02:39]} 41. Rxa6 {[%emt 0:00:25]} h4 {[%emt 0:01:16]} 42. Ne8+ {[%emt 0:00:54]} Ke7 {[%emt 0:04:21]} 0-1

[Event "2nd Goa GM Open 2019"]
[Site "Goa"]
[Date "2019.06.25"]
[Round "10.11"]
[White "Gagare, Shardul"]
[Black "Anuj Shrivatri"]
[Result "1/2-1/2"]
[ECO "C50"]
[WhiteElo "2482"]
[BlackElo "2336"]
[Annotator "ChessBase"]
[PlyCount "47"]
[EventDate "2019.06.17"]
[EventType "swiss"]
[EventCountry "IND"]
[SourceTitle "playchess.com"]
[Source "ChessBase"]
[SourceQuality "1"]
[TimeControl "5400+30"]

1. e4 {[%emt 0:00:10]} e5 {[%emt 0:00:00]} 2. Bc4 {[%emt 0:00:36]} Nf6 {[%emt 0:00:18]} 3. d3 {[%emt 0:00:07]} Nc6 {[%emt 0:00:48]} 4. Nf3 {[%emt 0:00:31]} Bc5 {[%emt 0:02:19]} 5. c3 {[%emt 0:00:22]} O-O {[%emt 0:00:07]} 6. Nbd2 {[%emt 0:00:08]} d6 {[%emt 0:01:53]} 7. h3 {[%emt 0:00:25]} a6 {[%emt 0:01:09]} 8. Bb3 {[%emt 0:00:17]} Ba7 {[%emt 0:01:44]} 9. Nf1 {[%emt 0:00:42]} Ne7 {[%emt 0:03:17]} 10. g4 {[%emt 0:18:39]} Ng6 {[%emt 0:04:50]} 11. Ng3 {[%emt 0:02:01]} Be6 {[%emt 0:01:56]} 12. Bc2 {[%emt 0:13:38]} d5 {[%emt 0:02:41]} 13. Qe2 {[%emt 0:00:27]} dxe4 {[%emt 0:08:19]} 14. dxe4 {[%emt 0:02:04]} b5 {[%emt 0:07:09]} 15. b3 {[%emt 0:01:52]} Qd6 {[%emt 0:07:35]} 16. O-O {[%emt 0:20:40]} Rfe8 {[%emt 0:09:39]} 17. Nf5 {[%emt 0:17:12]} Qc5 {[%emt 0:08:45]} 18. Qe1 {[%emt 0:06:36]} Kh8 {[%emt 0:07:30]} 19. Kh2 {[%emt 0:00:05]} Kg8 {[%emt 0:00:07]} 20. Kg1 {[%emt 0:00:02]} Kh8 {[%emt 0:00:06]} 21. Kh2 {[%emt 0:00:01]} Kg8 {[%emt 0:00:06]} 22. Kg1 {[%emt 0:00:03]} Kh8 {[%emt 0:00:04]} 23. Kh2 {[%emt 0:00:04]} Kg8 {[%emt 0:00:37]} 24. Kg1 {[%emt 0:00:30]} 1/2-1/2

[Event "2nd Goa GM Open 2019"]
[Site "Goa"]
[Date "2019.06.25"]
[Round "10.14"]
[White "Iniyan, P."]
[Black "Mendonca, Leon Luke"]
[Result "1/2-1/2"]
[ECO "B90"]
[WhiteElo "2525"]
[BlackElo "2405"]
[Annotator "ChessBase"]
[PlyCount "105"]
[EventDate "2019.06.17"]
[EventType "swiss"]
[EventCountry "IND"]
[SourceTitle "playchess.com"]
[Source "ChessBase"]
[SourceQuality "1"]
[TimeControl "5400+30"]

1. e4 {[%emt 0:00:15]} c5 {[%emt 0:00:00]} 2. Nf3 {[%emt 0:00:06]} d6 {[%emt 0:00:00]} 3. d4 {[%emt 0:00:04]} cxd4 {[%emt 0:00:00]} 4. Nxd4 {[%emt 0:00:06]} Nf6 {[%emt 0:00:00]} 5. Nc3 {[%emt 0:00:07]} a6 {[%emt 0:00:13]} 6. h3 {[%emt 0:00:06]} e5 {[%emt 0:00:22]} 7. Nb3 {[%emt 0:00:05]} Be6 {[%emt 0:01:39]} 8. Be3 {[%emt 0:00:10]} Be7 {[%emt 0:00:06]} 9. f4 {[%emt 0:01:13]} exf4 {[%emt 0:00:54]} 10. Bxf4 {[%emt 0:00:08]} Nc6 {[%emt 0:00:11]} 11. Qe2 {[%emt 0:01:56]} Nd7 {[%emt 0:00:42]} 12. O-O-O {[%emt 0:03:58]} Nce5 {[%emt 0:00:03]} 13. Kb1 {[%emt 0:05:06]} O-O {[%emt 0:00:37]} 14. Nd4 {[%emt 0:01:37]} Rc8 {[%emt 0:02:41]} 15. Qd2 {[%emt 0:00:08]} Nb6 {[%emt 0:07:37]} 16. Nxe6 {[%emt 0:23:02]} fxe6 {[%emt 0:00:13]} 17. Bxe5 {[%emt 0:00:06]} dxe5 {[%emt 0:00:09]} 18. Qxd8 {[%emt 0:00:04]} Rcxd8 {[%emt 0:20:31]} 19. Rxd8 {[%emt 0:00:25]} Bxd8 {[%emt 0:00:45]} 20. Be2 {[%emt 0:00:07]} Rf2 {[%emt 0:13:59]} 21. Rf1 {[%emt 0:00:07]} Rxf1+ {[%emt 0:03:54]} 22. Bxf1 {[%emt 0:00:07]} Be7 {[%emt 0:00:45]} 23. a3 {[%emt 0:01:42]} Bc5 {[%emt 0:07:10]} 24. b4 {[%emt 0:04:22]} Bd4 {[%emt 0:03:25]} 25. Nd1 {[%emt 0:01:46]} Na4 {[%emt 0:05:04]} 26. c4 {[%emt 0:00:13]} Nc3+ {[%emt 0:04:26]} 27. Nxc3 {[%emt 0:00:07]} Bxc3 {[%emt 0:00:01]} 28. Kc2 {[%emt 0:02:13]} Bd4 {[%emt 0:01:35]} 29. Kb3 {[%emt 0:00:30]} Kf7 {[%emt 0:01:18]} 30. c5 {[%emt 0:00:47]} Ke7 {[%emt 0:01:43]} 31. Ka4 {[%emt 0:00:13]} Bb2 {[%emt 0:02:47]} 32. Kb3 {[%emt 0:00:19]} Bd4 {[%emt 0:00:03]} 33. Ka4 {[%emt 0:00:08]} Bb2 {[%emt 0:00:01]} 34. b5 {[%emt 0:00:10]} axb5+ {[%emt 0:02:27]} 35. Bxb5 {[%emt 0:00:28]} Bd4 {[%emt 0:05:00]} 36. Kb4 {[%emt 0:00:11]} b6 {[%emt 0:01:55]} 37. cxb6 {[%emt 0:00:59]} Bxb6 {[%emt 0:00:04]} 38. Bc4 {[%emt 0:00:06]} Kd6 {[%emt 0:01:13]} 39. Kb5 {[%emt 0:00:08]} Bf2 {[%emt 0:00:51]} 40. Ka6 {[%emt 0:02:50]} Kc7 {[%emt 0:00:14]} 41. Bxe6 {[%emt 0:01:19]} h5 {[%emt 0:00:49]} 42. Bf7 {[%emt 0:00:19]} h4 {[%emt 0:00:04]} 43. Bg6 {[%emt 0:00:11]} Bg3 {[%emt 0:01:25]} 44. Kb5 {[%emt 0:00:06]} Kb7 {[%emt 0:00:28]} 45. Kc5 {[%emt 0:01:07]} Ka6 {[%emt 0:00:08]} 46. Kd5 {[%emt 0:00:04]} Ka5 {[%emt 0:00:13]} 47. Be8 {[%emt 0:00:28]} g5 {[%emt 0:00:01]} 48. Ke6 {[%emt 0:00:08]} Bf4 {[%emt 0:00:11]} 49. Kf5 {[%emt 0:00:04]} Kb6 {[%emt 0:00:07]} 50. a4 {[%emt 0:00:08]} Ka5 {[%emt 0:00:01]} 51. Bd7 {[%emt 0:00:10]} Kb6 {[%emt 0:00:02]} 52. Be8 {[%emt 0:00:07]} Ka5 {[%emt 0:00:00]} 53. Bd7 {[%emt 0:00:09]} 1/2-1/2

[Event "2nd Goa GM Open 2019"]
[Site "Goa"]
[Date "2019.06.25"]
[Round "10.16"]
[White "Kunte, Abhijit"]
[Black "Mitrabha, Guha"]
[Result "1-0"]
[ECO "A37"]
[WhiteElo "2478"]
[BlackElo "2341"]
[Annotator "ChessBase"]
[PlyCount "155"]
[EventDate "2019.06.17"]
[EventType "swiss"]
[EventCountry "IND"]
[SourceTitle "playchess.com"]
[Source "ChessBase"]
[SourceQuality "1"]
[TimeControl "5400+30"]

1. c4 {[%emt 0:00:00]} c5 {[%emt 0:00:00]} 2. g3 {[%emt 0:00:06]} Nc6 {[%emt 0:00:00]} 3. Bg2 {[%emt 0:00:09]} g6 {[%emt 0:00:00]} 4. Nc3 {[%emt 0:03:17]} Bg7 {[%emt 0:00:00]} 5. Nf3 {[%emt 0:00:04]} e6 {[%emt 0:00:09]} 6. d3 {[%emt 0:02:50]} Nge7 {[%emt 0:00:06]} 7. h4 {[%emt 0:00:54]} h6 {[%emt 0:00:49]} 8. O-O {[%emt 0:05:46]} O-O {[%emt 0:00:28]} 9. Bf4 {[%emt 0:00:09]} d5 {[%emt 0:01:15]} 10. cxd5 {[%emt 0:00:12]} exd5 {[%emt 0:00:08]} 11. Qc1 {[%emt 0:05:43]} Kh7 {[%emt 0:01:55]} 12. Nb5 {[%emt 0:01:35]} Bg4 {[%emt 0:04:23]} 13. Qxc5 {[%emt 0:01:33]} Bxb2 {[%emt 0:00:16]} 14. Rab1 {[%emt 0:00:22]} Bg7 {[%emt 0:00:05]} 15. e3 {[%emt 0:12:51]} b6 {[%emt 0:14:51]} 16. Qd6 {[%emt 0:00:59]} Qxd6 {[%emt 0:03:30]} 17. Bxd6 {[%emt 0:01:18]} Rfd8 {[%emt 0:01:06]} 18. Rfc1 {[%emt 0:00:34]} Rd7 {[%emt 0:01:33]} 19. d4 {[%emt 0:03:55]} Bf5 {[%emt 0:01:03]} 20. Rb3 {[%emt 0:03:17]} a6 {[%emt 0:11:12]} 21. Bxe7 {[%emt 0:01:13]} Na5 {[%emt 0:00:40]} 22. Ra3 {[%emt 0:10:08]} axb5 {[%emt 0:00:41]} 23. Bb4 {[%emt 0:00:08]} Rda7 {[%emt 0:00:13]} 24. Nd2 {[%emt 0:00:49]} Be6 {[%emt 0:00:24]} 25. Nb1 {[%emt 0:06:51]} Bf8 {[%emt 0:00:56]} 26. Bxf8 {[%emt 0:00:09]} Rxf8 {[%emt 0:00:01]} 27. Nc3 {[%emt 0:05:36]} b4 {[%emt 0:06:37]} 28. Nb5 {[%emt 0:00:06]} Raa8 {[%emt 0:00:17]} 29. Ra4 {[%emt 0:00:49]} b3 {[%emt 0:00:06]} 30. axb3 {[%emt 0:02:43]} Nxb3 {[%emt 0:00:03]} 31. Rxa8 {[%emt 0:00:07]} Rxa8 {[%emt 0:00:01]} 32. Rc2 {[%emt 0:00:07]} Ra1+ {[%emt 0:03:52]} 33. Kh2 {[%emt 0:00:08]} Rc1 {[%emt 0:02:48]} 34. Rxc1 {[%emt 0:00:48]} Nxc1 {[%emt 0:00:02]} 35. Nc3 {[%emt 0:00:07]} Nd3 {[%emt 0:00:04]} 36. Kg1 {[%emt 0:00:07]} Nb4 {[%emt 0:00:04]} 37. Na4 {[%emt 0:00:04]} Bd7 {[%emt 0:01:43]} 38. Nxb6 {[%emt 0:01:55]} Bc6 {[%emt 0:00:00]} 39. Kf1 {[%emt 0:00:25]} Bb5+ {[%emt 0:00:04]} 40. Ke1 {[%emt 0:01:06]} Nd3+ {[%emt 0:00:11]} 41. Kd2 {[%emt 0:00:52]} Nxf2 {[%emt 0:00:05]} 42. Nxd5 {[%emt 0:00:33]} Kg7 {[%emt 0:00:33]} 43. Nc3 {[%emt 0:00:41]} Bc4 {[%emt 0:00:17]} 44. e4 {[%emt 0:02:43]} g5 {[%emt 0:00:55]} 45. Bf3 {[%emt 0:00:39]} Nd3 {[%emt 0:04:41]} 46. hxg5 {[%emt 0:04:51]} hxg5 {[%emt 0:00:02]} 47. Be2 {[%emt 0:03:15]} Nb2 {[%emt 0:00:06]} 48. Nd1 {[%emt 0:00:23]} Bxe2 {[%emt 0:00:29]} 49. Nxb2 {[%emt 0:00:06]} Bb5 {[%emt 0:00:13]} 50. Nd1 {[%emt 0:00:43]} Kf6 {[%emt 0:00:08]} 51. Ne3 {[%emt 0:00:08]} Ke6 {[%emt 0:00:13]} 52. Nf5 {[%emt 0:00:44]} Bf1 {[%emt 0:00:36]} 53. Ke3 {[%emt 0:00:26]} f6 {[%emt 0:01:16]} 54. d5+ {[%emt 0:00:35]} Ke5 {[%emt 0:00:57]} 55. Nd4 {[%emt 0:00:07]} Kd6 {[%emt 0:00:31]} 56. Nf3 {[%emt 0:02:08]} Bg2 {[%emt 0:00:27]} 57. Ne1 {[%emt 0:00:10]} Bh1 {[%emt 0:03:28]} 58. Kd4 {[%emt 0:00:07]} Kd7 {[%emt 0:00:03]} 59. Nc2 {[%emt 0:00:42]} Bf3 {[%emt 0:00:24]} 60. Ne3 {[%emt 0:00:19]} Ke7 {[%emt 0:00:29]} 61. e5 {[%emt 0:01:19]} fxe5+ {[%emt 0:00:10]} 62. Kxe5 {[%emt 0:00:06]} Kd7 {[%emt 0:00:11]} 63. Nc4 {[%emt 0:04:01]} Ke7 {[%emt 0:01:04]} 64. Nd2 {[%emt 0:01:16]} Be2 {[%emt 0:00:27]} 65. Ne4 {[%emt 0:01:01]} g4 {[%emt 0:00:05]} 66. Nf6 {[%emt 0:00:03]} Bd1 {[%emt 0:00:39]} 67. d6+ {[%emt 0:01:28]} Kd8 {[%emt 0:00:02]} 68. Ke6 {[%emt 0:00:53]} Be2 {[%emt 0:00:34]} 69. Kf5 {[%emt 0:02:12]} Kc8 {[%emt 0:00:07]} 70. Ke5 {[%emt 0:01:03]} Kd8 {[%emt 0:00:09]} 71. Ne4 {[%emt 0:00:16]} Kd7 {[%emt 0:00:40]} 72. Nc5+ {[%emt 0:00:09]} Kd8 {[%emt 0:00:06]} 73. Kf6 {[%emt 0:00:12]} Bc4 {[%emt 0:01:18]} 74. Kf5 {[%emt 0:00:36]} Be2 {[%emt 0:00:08]} 75. Ke6 {[%emt 0:00:16]} Bc4+ {[%emt 0:00:03]} 76. Ke5 {[%emt 0:00:03]} Be2 {[%emt 0:00:59]} 77. Kd5 {[%emt 0:00:08]} Bf1 {[%emt 0:00:27]} 78. d7 {[%emt 0:00:17]} 1-0

[Event "2nd Goa GM Open 2019"]
[Site "Goa"]
[Date "2019.06.25"]
[Round "10.17"]
[White "Rathanvel, V S"]
[Black "Kostenko, Petr"]
[Result "1/2-1/2"]
[ECO "C18"]
[WhiteElo "2314"]
[BlackElo "2473"]
[Annotator "ChessBase"]
[PlyCount "100"]
[EventDate "2019.06.17"]
[EventType "swiss"]
[EventCountry "IND"]
[SourceTitle "playchess.com"]
[Source "ChessBase"]
[SourceQuality "1"]
[TimeControl "5400+30"]

1. e4 {[%emt 0:00:00]} e6 {[%emt 0:00:02]} 2. d4 {[%emt 0:00:00]} d5 {[%emt 0:00:07]} 3. Nc3 {[%emt 0:00:00]} Bb4 {[%emt 0:00:10]} 4. e5 {[%emt 0:00:00]} c5 {[%emt 0:00:07]} 5. a3 {[%emt 0:00:04]} Bxc3+ {[%emt 0:00:05]} 6. bxc3 {[%emt 0:00:07]} Nc6 {[%emt 0:00:06]} 7. Qg4 {[%emt 0:04:28]} g6 {[%emt 0:01:03]} 8. Nf3 {[%emt 0:00:13]} Qa5 {[%emt 0:00:07]} 9. Bd2 {[%emt 0:00:08]} Qa4 {[%emt 0:00:03]} 10. Bd3 {[%emt 0:00:15]} c4 {[%emt 0:00:04]} 11. Be2 {[%emt 0:00:06]} Bd7 {[%emt 0:00:12]} 12. O-O {[%emt 0:01:01]} h6 {[%emt 0:00:08]} 13. Ra2 {[%emt 0:06:21]} O-O-O {[%emt 0:00:07]} 14. h4 {[%emt 0:08:00]} Rf8 {[%emt 0:00:11]} 15. Nh2 {[%emt 0:09:10]} f6 {[%emt 0:10:38]} 16. f4 {[%emt 0:08:15]} Nge7 {[%emt 0:00:45]} 17. exf6 {[%emt 0:05:19]} Rxf6 {[%emt 0:00:06]} 18. Qg3 {[%emt 0:00:06]} Nf5 {[%emt 0:00:11]} 19. Qf2 {[%emt 0:00:04]} Rff8 {[%emt 0:00:46]} 20. Ng4 {[%emt 0:03:49]} Qa5 {[%emt 0:01:17]} 21. Bf3 {[%emt 0:07:16]} Rhg8 {[%emt 0:03:54]} 22. g3 {[%emt 0:08:37]} Qd8 {[%emt 0:04:58]} 23. Raa1 {[%emt 0:03:37]} Kb8 {[%emt 0:03:51]} 24. Rae1 {[%emt 0:03:41]} Ka8 {[%emt 0:00:08]} 25. Kg2 {[%emt 0:02:34]} h5 {[%emt 0:03:04]} 26. Ne5 {[%emt 0:03:28]} Nxe5 {[%emt 0:00:51]} 27. fxe5 {[%emt 0:00:11]} g5 {[%emt 0:15:02]} 28. Bxg5 {[%emt 0:00:52]} Rxg5 {[%emt 0:00:50]} 29. hxg5 {[%emt 0:00:05]} Qxg5 {[%emt 0:00:03]} 30. Rh1 {[%emt 0:00:34]} Be8 {[%emt 0:05:33]} 31. Rh3 {[%emt 0:01:04]} Rg8 {[%emt 0:01:59]} 32. Reh1 {[%emt 0:11:43]} h4 {[%emt 0:02:53]} 33. g4 {[%emt 0:00:04]} Kb8 {[%emt 0:00:11]} 34. Rxh4 {[%emt 0:00:54]} Nxh4+ {[%emt 0:00:06]} 35. Qxh4 {[%emt 0:00:37]} Qd2+ {[%emt 0:00:20]} 36. Kg3 {[%emt 0:00:05]} Bd7 {[%emt 0:06:11]} 37. Qe7 {[%emt 0:10:25]} Bc8 {[%emt 0:02:26]} 38. Rh7 {[%emt 0:00:30]} Qxc3 {[%emt 0:01:28]} 39. Qf7 {[%emt 0:00:44]} Qe1+ {[%emt 0:00:16]} 40. Kg2 {[%emt 0:01:31]} Qd2+ {[%emt 0:00:39]} 41. Kh3 {[%emt 0:00:08]} Qg5 {[%emt 0:00:13]} 42. Qf6 {[%emt 0:03:08]} Qe3 {[%emt 0:00:59]} 43. Qf7 {[%emt 0:00:17]} Qg5 {[%emt 0:03:51]} 44. Qf6 {[%emt 0:00:10]} Qc1 {[%emt 0:00:20]} 45. Qf7 {[%emt 0:00:26]} Qg5 {[%emt 0:08:37]} 46. Qf6 {[%emt 0:00:42]} Qe3 {[%emt 0:00:05]} 47. Qf7 {[%emt 0:01:05]} Qg5 {[%emt 0:00:05]} 48. Qf6 {[%emt 0:00:04]} Qe3 {[%emt 0:00:05]} 49. Qf7 {[%emt 0:00:07]} Qg5 {[%emt 0:00:06]} 50. Qf6 {[%emt 0:00:08]} Qe3 {[%emt 0:00:10]} 1/2-1/2